[Event "FIDE Women's Grand Swiss 2023"]
[Site "Villa Marina, Douglas, Isle of Man, Isle Of Man"]
[Date "2023.10.28"]
[Round "4.20"]
[White "Cori T., Deysi"]
[Black "Matnadze Bujiashvili, Ann"]
[Result "1-0"]
[TimeControl "40/90 + 30 + 30s/move"]
[WhiteFideId "3801934"]
[BlackFideId "13601377"]
[WhiteElo "2367"]
[BlackElo "2400"]

1. d4 {[%clk 01:30:53]} {[%emt 00:00:06]} Nf6 {[%clk 01:30:50]} {[%emt
00:00:10]} 2. c4 {[%clk 01:31:02]} {[%emt 00:00:21]} e6 {[%clk 01:31:15]}
{[%emt 00:00:05]} 3. g3 {[%clk 01:31:01]} {[%emt 00:00:31]} d5 {[%clk
01:31:07]} {[%emt 00:00:38]} 4. Bg2 {[%clk 01:31:01]} {[%emt 00:00:29]} Bb4+
{[%clk 01:31:03]} {[%emt 00:00:34]} 5. Nd2 {[%clk 01:30:45]} {[%emt 00:00:47]}
O-O {[%clk 01:31:08]} {[%emt 00:00:25]} 6. Ngf3 {[%clk 01:31:03]} {[%emt
00:00:12]} a5 {[%clk 01:30:25]} {[%emt 00:01:13]} 7. O-O {[%clk 01:29:09]}
{[%emt 00:02:25]} b6 {[%clk 01:28:18]} {[%emt 00:02:36]} 8. Ne5 {[%clk
01:24:53]} {[%emt 00:04:46]} Bb7 {[%clk 01:28:23]} {[%emt 00:00:25]} 9. Qc2
{[%clk 01:23:45]} {[%emt 00:01:38]} Be7 {[%clk 01:28:00]} {[%emt 00:00:53]} 10.
Rd1 {[%clk 01:13:35]} {[%emt 00:10:41]} Qc8 {[%clk 01:25:00]} {[%emt 00:03:29]}
11. cxd5 {[%clk 01:01:58]} {[%emt 00:12:07]} exd5 {[%clk 01:21:03]} {[%emt
00:04:27]} 12. Ndf3 {[%clk 00:58:57]} {[%emt 00:03:30]} c5 {[%clk 01:19:19]}
{[%emt 00:02:14]} 13. Bg5 {[%clk 00:54:57]} {[%emt 00:04:31]} Na6 {[%clk
01:17:10]} {[%emt 00:02:39]} 14. a3 {[%clk 00:51:34]} {[%emt 00:03:54]} Re8
{[%clk 01:14:18]} {[%emt 00:03:22]} 15. Rac1 {[%clk 00:47:55]} {[%emt
00:04:09]} Ne4 {[%clk 01:11:12]} {[%emt 00:03:35]} 16. Bxe7 {[%clk 00:38:17]}
{[%emt 00:10:08]} Rxe7 {[%clk 01:11:39]} {[%emt 00:00:03]} 17. dxc5 {[%clk
00:38:18]} {[%emt 00:00:30]} bxc5 {[%clk 01:11:32]} {[%emt 00:00:36]} 18. Nd3
{[%clk 00:37:12]} {[%emt 00:01:36]} Qe8 {[%clk 01:08:12]} {[%emt 00:03:50]} 19.
Nd2 {[%clk 00:31:30]} {[%emt 00:06:13]} Nf6 {[%clk 00:52:52]} {[%emt 00:15:49]}
20. Nxc5 {[%clk 00:29:56]} {[%emt 00:02:05]} Rc8 {[%clk 00:51:59]} {[%emt
00:01:22]} 21. b4 {[%clk 00:30:03]} {[%emt 00:00:23]} Rxe2 {[%clk 00:50:58]}
{[%emt 00:01:30]} 22. Bf3 {[%clk 00:22:38]} {[%emt 00:07:56]} Re7 {[%clk
00:51:13]} {[%emt 00:00:15]} 23. Qb2 {[%clk 00:18:26]} {[%emt 00:04:43]} axb4
{[%clk 00:48:06]} {[%emt 00:03:36]} 24. axb4 {[%clk 00:18:36]} {[%emt
00:00:20]} Nxc5 {[%clk 00:41:14]} {[%emt 00:07:23]} 25. bxc5 {[%clk 00:18:24]}
{[%emt 00:00:42]} Ne4 {[%clk 00:41:09]} {[%emt 00:00:34]} 26. Qd4 {[%clk
00:17:42]} {[%emt 00:01:13]} Ng5 {[%clk 00:35:39]} {[%emt 00:06:00]} 27. Bg2
{[%clk 00:14:38]} {[%emt 00:03:34]} Ne6 {[%clk 00:35:39]} {[%emt 00:00:30]} 28.
Qb4 {[%clk 00:15:00]} {[%emt 00:00:07]} Bc6 {[%clk 00:16:22]} {[%emt 00:19:47]}
29. Nf3 {[%clk 00:15:29]} {[%emt 00:00:01]} h6 {[%clk 00:14:42]} {[%emt
00:02:11]} 30. Nh4 {[%clk 00:12:10]} {[%emt 00:03:49]} Rb7 {[%clk 00:12:39]}
{[%emt 00:02:33]} 31. Qg4 {[%clk 00:11:42]} {[%emt 00:00:58]} Qf8 {[%clk
00:09:47]} {[%emt 00:03:22]} 32. Nf5 {[%clk 00:11:27]} {[%emt 00:00:44]} h5
{[%clk 00:10:06]} {[%emt 00:00:11]} 33. Qxh5 {[%clk 00:11:18]} {[%emt
00:00:40]} Nxc5 {[%clk 00:07:18]} {[%emt 00:03:18]} 34. Nxg7 {[%clk 00:05:34]}
{[%emt 00:06:14]} Nb3 {[%clk 00:04:11]} {[%emt 00:03:36]} 35. Nf5 {[%clk
00:02:53]} {[%emt 00:03:11]} Nxc1 {[%clk 00:03:57]} {[%emt 00:00:44]} 36. Rd4
{[%clk 00:01:47]} {[%emt 00:01:37]} Ne2+ {[%clk 00:02:21]} {[%emt 00:02:06]} 37.
Qxe2 {[%clk 00:02:15]} {[%emt 00:00:01]} Rb1+ {[%clk 00:02:27]} {[%emt
00:00:24]} 38. Bf1 {[%clk 00:02:44]} Qc5 {[%clk 00:01:06]} {[%emt 00:01:51]} 39.
Qe5 {[%clk 00:03:01]} {[%emt 00:00:13]} f6 {[%clk 00:00:57]} {[%emt 00:00:39]}
40. Qxf6 {[%clk 00:02:44]} {[%emt 00:00:47]} Rxf1+ {[%clk 00:00:58]} {[%emt
00:00:29]} 41. Kxf1 {[%clk 00:03:08]} {[%emt 00:00:07]} 1-0

[Event "FIDE Women's Grand Swiss 2023"]
[Site "Villa Marina, Douglas, Isle of Man, Isle Of Man"]
[Date "2023.10.28"]
[Round "4.21"]
[White "Narva, Mai"]
[Black "Arakhamia-Grant, Ketevan"]
[Result "1-0"]
[TimeControl "40/90 + 30 + 30s/move"]
[WhiteFideId "4500512"]
[BlackFideId "13600168"]
[WhiteElo "2399"]
[BlackElo "2297"]

1. e4 {[%clk 01:30:55]} {[%emt 00:00:04]} c5 {[%clk 01:30:55]} {[%emt
00:00:06]} 2. Nf3 {[%clk 01:31:19]} {[%emt 00:00:06]} g6 {[%clk 01:31:16]}
{[%emt 00:00:08]} 3. d4 {[%clk 01:26:23]} {[%emt 00:05:26]} cxd4 {[%clk
01:31:40]} {[%emt 00:00:06]} 4. Nxd4 {[%clk 01:26:35]} {[%emt 00:00:19]} Nc6
{[%clk 01:31:18]} {[%emt 00:00:52]} 5. c4 {[%clk 01:24:50]} {[%emt 00:02:14]}
Nf6 {[%clk 01:31:30]} {[%emt 00:00:19]} 6. Nc3 {[%clk 01:24:26]} {[%emt
00:00:54]} Nxd4 {[%clk 01:31:38]} {[%emt 00:00:21]} 7. Qxd4 {[%clk 01:24:47]}
{[%emt 00:00:08]} d6 {[%clk 01:32:01]} {[%emt 00:00:07]} 8. Bg5 {[%clk
01:19:20]} {[%emt 00:05:57]} Bg7 {[%clk 01:32:11]} {[%emt 00:00:21]} 9. Be2
{[%clk 01:18:53]} {[%emt 00:00:57]} O-O {[%clk 01:32:22]} {[%emt 00:00:18]} 10.
Qd2 {[%clk 01:17:29]} {[%emt 00:01:54]} a5 {[%clk 01:27:04]} {[%emt 00:05:49]}
11. O-O {[%clk 01:15:35]} {[%emt 00:02:23]} a4 {[%clk 01:27:04]} {[%emt
00:00:30]} 12. Rab1 {[%clk 01:03:39]} {[%emt 00:12:25]} Bd7 {[%clk 01:13:57]}
{[%emt 00:13:38]} 13. c5 {[%clk 00:47:35]} {[%emt 00:16:34]} dxc5 {[%clk
01:05:45]} {[%emt 00:08:43]} 14. e5 {[%clk 00:32:25]} {[%emt 00:15:39]} Ng4
{[%clk 01:05:49]} {[%emt 00:00:26]} 15. Bxg4 {[%clk 00:13:10]} {[%emt
00:19:45]} Bxg4 {[%clk 01:06:08]} {[%emt 00:00:11]} 16. Qxd8 {[%clk 00:13:03]}
{[%emt 00:00:36]} Rfxd8 {[%clk 01:06:29]} 17. Bxe7 {[%clk 00:13:19]} {[%emt
00:00:24]} Rd2 {[%clk 00:24:26]} {[%emt 00:42:34]} 18. Ne4 {[%clk 00:09:38]}
{[%emt 00:04:10]} Re2 {[%clk 00:24:49]} {[%emt 00:00:08]} 19. Nf6+ {[%clk
00:08:38]} {[%emt 00:01:30]} Bxf6 {[%clk 00:25:13]} {[%emt 00:00:05]} 20. Bxf6
{[%clk 00:08:18]} {[%emt 00:00:49]} c4 {[%clk 00:25:27]} {[%emt 00:00:17]} 21.
a3 {[%clk 00:03:42]} {[%emt 00:05:06]} Bf5 {[%clk 00:22:15]} {[%emt 00:03:43]}
22. Rfe1 {[%clk 00:03:50]} {[%emt 00:00:21]} Rxe1+ {[%clk 00:20:39]} {[%emt
00:02:06]} 23. Rxe1 {[%clk 00:04:15]} {[%emt 00:00:05]} Kf8 {[%clk 00:20:52]}
{[%emt 00:00:17]} 24. Rd1 {[%clk 00:02:25]} {[%emt 00:02:20]} Bd3 {[%clk
00:20:50]} {[%emt 00:00:32]} 25. g4 {[%clk 00:02:39]} {[%emt 00:00:16]} Ke8
{[%clk 00:18:51]} {[%emt 00:02:30]} 26. f4 {[%clk 00:02:00]} {[%emt 00:01:08]}
Kd7 {[%clk 00:18:32]} {[%emt 00:00:49]} 27. Kf2 {[%clk 00:02:05]} {[%emt
00:00:25]} Ke6 {[%clk 00:13:56]} {[%emt 00:05:06]} 28. h4 {[%clk 00:01:55]}
{[%emt 00:00:38]} Ra5 {[%clk 00:11:33]} {[%emt 00:02:54]} 29. Ke3 {[%clk
00:01:47]} {[%emt 00:00:38]} Rb5 {[%clk 00:11:16]} {[%emt 00:00:47]} 30. Rd2
{[%clk 00:02:05]} {[%emt 00:00:12]} Rb3 {[%clk 00:10:10]} {[%emt 00:01:37]} 31.
Kd4 {[%clk 00:01:52]} {[%emt 00:00:42]} b6 {[%clk 00:09:39]} {[%emt 00:01:02]}
32. Rf2 {[%clk 00:00:52]} {[%emt 00:01:31]} Rb5 {[%clk 00:07:54]} {[%emt
00:02:15]} 33. h5 {[%clk 00:00:52]} {[%emt 00:00:30]} Rd5+ {[%clk 00:06:04]}
{[%emt 00:02:19]} 34. Kc3 {[%clk 00:01:08]} {[%emt 00:00:14]} b5 {[%clk
00:04:04]} {[%emt 00:02:31]} 35. Rh2 {[%clk 00:01:17]} {[%emt 00:00:21]} Rd7
{[%clk 00:01:01]} {[%emt 00:03:33]} 36. Kb4 {[%clk 00:01:03]} {[%emt 00:00:44]}
Kd5 {[%clk 00:01:02]} {[%emt 00:00:29]} 37. Rh3 {[%clk 00:00:54]} {[%emt
00:00:38]} Ke4 {[%clk 00:01:09]} {[%emt 00:00:23]} 38. hxg6 {[%clk 00:01:02]}
{[%emt 00:00:22]} hxg6 {[%clk 00:01:12]} {[%emt 00:00:28]} 39. Rh7 {[%clk
00:01:04]} {[%emt 00:00:28]} Kd5 {[%clk 00:00:53]} {[%emt 00:00:48]} 40. Rh8
{[%clk 00:00:35]} {[%emt 00:00:59]} Be2 {[%clk 00:00:37]} {[%emt 00:00:47]} 41.
f5 {[%clk 00:25:46]} {[%emt 00:05:18]} gxf5 {[%clk 00:25:24]} {[%emt 00:05:44]}
42. gxf5 {[%clk 00:25:43]} {[%emt 00:00:32]} Bd3 {[%clk 00:23:27]} {[%emt
00:02:28]} 43. Rh5 {[%clk 00:18:28]} {[%emt 00:07:44]} Rb7 {[%clk 00:14:05]}
{[%emt 00:09:52]} 44. Bg7 {[%clk 00:16:07]} {[%emt 00:02:51]} Rc7 {[%clk
00:06:03]} {[%emt 00:08:33]} 45. e6 {[%clk 00:15:11]} {[%emt 00:01:25]} fxe6
{[%clk 00:05:20]} {[%emt 00:01:13]} 46. f6+ {[%clk 00:15:07]} {[%emt 00:00:34]}
Bf5 {[%clk 00:04:19]} {[%emt 00:01:31]} 47. Kxb5 {[%clk 00:14:39]} {[%emt
00:00:59]} Rb7+ {[%clk 00:04:06]} {[%emt 00:00:43]} 48. Kxa4 {[%clk 00:09:17]}
{[%emt 00:05:51]} Kc6 {[%clk 00:04:25]} {[%emt 00:00:12]} 49. Rh4 {[%clk
00:03:01]} {[%emt 00:06:45]} Bd3 {[%clk 00:03:01]} {[%emt 00:01:54]} 50. Rh8
{[%clk 00:01:42]} {[%emt 00:01:49]} e5 {[%clk 00:00:45]} {[%emt 00:02:47]} 51.
Rc8+ {[%clk 00:01:30]} {[%emt 00:00:41]} Kd5 {[%clk 00:00:59]} {[%emt
00:00:16]} 52. Re8 {[%clk 00:01:04]} {[%emt 00:00:56]} e4 {[%clk 00:00:36]}
{[%emt 00:00:55]} 53. Re7 {[%clk 00:01:13]} {[%emt 00:00:20]} Rxb2 {[%clk
00:00:34]} {[%emt 00:00:32]} 54. f7 {[%clk 00:01:09]} {[%emt 00:00:32]} Rf2
{[%clk 00:00:34]} {[%emt 00:00:31]} 55. f8=Q {[%clk 00:01:27]} {[%emt
00:00:13]} Rxf8 {[%clk 00:00:48]} 56. Bxf8 {[%clk 00:01:52]} {[%emt 00:00:20]}
1-0

[Event "FIDE Women's Grand Swiss 2023"]
[Site "Villa Marina, Douglas, Isle of Man, Isle Of Man"]
[Date "2023.10.28"]
[Round "4.22"]
[White "Aulia, Medina Warda"]
[Black "Tania, Sachdev"]
[Result "1-0"]
[TimeControl "40/90 + 30 + 30s/move"]
[WhiteFideId "7101570"]
[BlackFideId "5007844"]
[WhiteElo "2362"]
[BlackElo "2389"]

1. e4 {[%clk 01:30:58]} {[%emt 00:00:02]} e5 {[%clk 01:30:56]} {[%emt
00:00:05]} 2. Nf3 {[%clk 01:31:23]} {[%emt 00:00:04]} Nc6 {[%clk 01:31:22]}
{[%emt 00:00:05]} 3. Bc4 {[%clk 01:31:50]} {[%emt 00:00:03]} Nf6 {[%clk
01:31:08]} {[%emt 00:00:44]} 4. d3 {[%clk 01:32:15]} {[%emt 00:00:04]} Bc5
{[%clk 01:31:23]} {[%emt 00:00:15]} 5. c3 {[%clk 01:32:37]} {[%emt 00:00:08]}
d6 {[%clk 01:31:29]} {[%emt 00:00:24]} 6. Nbd2 {[%clk 01:32:24]} {[%emt
00:00:43]} O-O {[%clk 01:30:58]} {[%emt 00:01:01]} 7. O-O {[%clk 01:32:47]}
{[%emt 00:00:07]} a5 {[%clk 01:27:24]} {[%emt 00:04:05]} 8. h3 {[%clk
01:32:18]} {[%emt 00:00:58]} Bd7 {[%clk 01:20:49]} {[%emt 00:07:06]} 9. Re1
{[%clk 01:24:54]} {[%emt 00:07:54]} a4 {[%clk 01:11:37]} {[%emt 00:09:42]} 10.
a3 {[%clk 01:25:13]} {[%emt 00:00:11]} Qb8 {[%clk 01:04:50]} {[%emt 00:07:16]}
11. Nf1 {[%clk 01:24:46]} {[%emt 00:00:58]} b5 {[%clk 01:00:14]} {[%emt
00:05:07]} 12. Ba2 {[%clk 01:25:10]} {[%emt 00:00:05]} Qa7 {[%clk 00:57:03]}
{[%emt 00:03:41]} 13. Be3 {[%clk 01:25:21]} {[%emt 00:00:19]} Bxe3 {[%clk
00:50:13]} {[%emt 00:07:20]} 14. Nxe3 {[%clk 01:25:23]} {[%emt 00:00:27]} Ne7
{[%clk 00:40:08]} {[%emt 00:10:35]} 15. d4 {[%clk 01:25:40]} {[%emt 00:00:13]}
Ng6 {[%clk 00:38:51]} {[%emt 00:01:47]} 16. dxe5 {[%clk 01:14:50]} {[%emt
00:11:20]} dxe5 {[%clk 00:37:09]} {[%emt 00:02:13]} 17. Nd5 {[%clk 01:12:27]}
{[%emt 00:02:53]} Rad8 {[%clk 00:25:07]} {[%emt 00:12:31]} 18. Nxf6+ {[%clk
01:12:24]} {[%emt 00:00:34]} gxf6 {[%clk 00:25:35]} {[%emt 00:00:01]} 19. Nh2
{[%clk 01:12:46]} {[%emt 00:00:08]} Bxh3 {[%clk 00:16:56]} {[%emt 00:09:09]} 20.
Qf3 {[%clk 01:12:55]} {[%emt 00:00:22]} Be6 {[%clk 00:16:45]} {[%emt 00:00:41]}
21. Qxf6 {[%clk 01:13:05]} {[%emt 00:00:20]} Qb6 {[%clk 00:14:30]} {[%emt
00:02:45]} 22. Qg5 {[%clk 01:10:09]} {[%emt 00:03:26]} Bxa2 {[%clk 00:06:40]}
23. Rxa2 {[%clk 01:10:30]} {[%emt 00:08:29]} f6 {[%clk 00:06:43]} {[%emt
00:00:26]} 24. Qh6 {[%clk 01:10:50]} {[%emt 00:00:11]} Rd7 {[%clk 00:05:16]}
{[%emt 00:01:57]} 25. Raa1 {[%clk 01:05:34]} {[%emt 00:05:45]} Rg7 {[%clk
00:04:57]} {[%emt 00:00:49]} 26. Ng4 {[%clk 00:49:57]} {[%emt 00:16:07]} Nf4
{[%clk 00:05:21]} {[%emt 00:00:06]} 27. Ne3 {[%clk 00:50:25]} {[%emt 00:00:03]}
Kh8 {[%clk 00:02:35]} {[%emt 00:03:15]} 28. Rad1 {[%clk 00:45:51]} {[%emt
00:05:04]} Rfg8 {[%clk 00:02:01]} {[%emt 00:01:04]} 29. g3 {[%clk 00:43:17]}
{[%emt 00:03:04]} Rg6 {[%clk 00:02:27]} {[%emt 00:00:05]} 30. Qh1 {[%clk
00:40:45]} {[%emt 00:03:01]} Rg5 {[%clk 00:00:59]} {[%emt 00:01:59]} 31. Qf3
{[%clk 00:40:29]} {[%emt 00:00:45]} Qc6 {[%clk 00:00:54]} {[%emt 00:00:35]} 32.
Kf1 {[%clk 00:37:54]} {[%emt 00:03:05]} Nh5 {[%clk 00:00:36]} {[%emt 00:00:49]}
33. Nf5 {[%clk 00:37:06]} {[%emt 00:01:18]} Qe6 {[%clk 00:00:37]} {[%emt
00:00:28]} 34. Rd3 {[%clk 00:33:36]} {[%emt 00:04:01]} Ng7 {[%clk 00:00:46]}
{[%emt 00:00:20]} 35. Nxg7 {[%clk 00:33:10]} {[%emt 00:00:56]} R5xg7 {[%clk
00:01:10]} {[%emt 00:00:07]} 36. Red1 {[%clk 00:33:21]} {[%emt 00:00:19]} Qh3+
{[%clk 00:00:53]} {[%emt 00:00:46]} 37. Ke2 {[%clk 00:33:32]} {[%emt 00:00:19]}
Qe6 {[%clk 00:00:56]} {[%emt 00:00:27]} 38. Rd5 {[%clk 00:32:08]} {[%emt
00:01:54]} Rg5 {[%clk 00:00:44]} {[%emt 00:00:42]} 39. Rxb5 {[%clk 00:30:14]}
{[%emt 00:02:24]} f5 {[%clk 00:01:13]} {[%emt 00:00:02]} 40. Rbd5 {[%clk
00:29:37]} {[%emt 00:01:07]} c6 {[%clk 00:00:33]} {[%emt 00:01:10]} 41. Rd6
{[%clk 00:29:10]} {[%emt 00:00:56]} Qb3 {[%clk 00:23:36]} {[%emt 00:07:27]} 42.
R1d2 {[%clk 00:59:15]} {[%emt 00:00:25]} Rf8 {[%clk 00:22:48]} {[%emt
00:01:18]} 43. Rd8 {[%clk 00:57:14]} {[%emt 00:02:32]} Rxd8 {[%clk 00:18:20]}
{[%emt 00:04:58]} 44. Rxd8+ {[%clk 00:57:39]} {[%emt 00:00:05]} Kg7 {[%clk
00:18:47]} {[%emt 00:00:02]} 45. Rd2 {[%clk 00:54:20]} {[%emt 00:03:49]} Qf7
{[%clk 00:17:43]} {[%emt 00:01:34]} 46. exf5 {[%clk 00:52:32]} {[%emt
00:02:18]} Rxf5 {[%clk 00:16:10]} {[%emt 00:02:03]} 47. Qg4+ {[%clk 00:52:58]}
{[%emt 00:00:04]} Kf8 {[%clk 00:16:10]} {[%emt 00:00:30]} 48. Rd8+ {[%clk
00:50:36]} {[%emt 00:02:52]} Ke7 {[%clk 00:16:36]} {[%emt 00:00:05]} 49. Qh4+
{[%clk 00:51:03]} {[%emt 00:00:03]} Rf6 {[%clk 00:16:26]} {[%emt 00:00:39]} 50.
Rb8 {[%clk 00:48:24]} {[%emt 00:03:09]} Kd6 {[%clk 00:12:11]} {[%emt 00:04:45]}
51. Qb4+ {[%clk 00:47:41]} {[%emt 00:01:14]} Ke6 {[%clk 00:12:30]} {[%emt
00:00:11]} 52. Qc4+ {[%clk 00:47:50]} {[%emt 00:00:20]} Kd6 {[%clk 00:12:49]}
{[%emt 00:00:11]} 53. Rd8+ {[%clk 00:48:01]} {[%emt 00:00:19]} Kc7 {[%clk
00:09:28]} {[%emt 00:03:51]} 54. Qxf7+ {[%clk 00:48:26]} {[%emt 00:00:06]} Rxf7
{[%clk 00:09:56]} {[%emt 00:00:01]} 55. Ra8 {[%clk 00:48:45]} {[%emt 00:00:12]}
1-0

[Event "FIDE Women's Grand Swiss 2023"]
[Site "Villa Marina, Douglas, Isle of Man, Isle Of Man"]
[Date "2023.10.28"]
[Round "4.23"]
[White "Lee, Alice"]
[Black "Terbe, Julianna"]
[Result "0-1"]
[TimeControl "40/90 + 30 + 30s/move"]
[WhiteFideId "30941822"]
[BlackFideId "708780"]
[WhiteElo "2388"]
[BlackElo "2266"]

1. d4 {[%clk 01:30:58]} {[%emt 00:00:02]} g6 {[%emt 00:00:18]} 2. c4 {[%clk
01:31:22]} Bg7 {[%clk 01:31:13]} {[%emt 00:00:05]} 3. Nf3 {[%clk 01:31:45]}
{[%emt 00:00:07]} d6 {[%clk 01:31:32]} {[%emt 00:00:11]} 4. Nc3 {[%clk
01:31:43]} {[%emt 00:00:33]} e5 {[%clk 01:31:43]} {[%emt 00:00:18]} 5. dxe5
{[%clk 01:28:52]} {[%emt 00:03:21]} dxe5 {[%clk 01:32:06]} {[%emt 00:00:07]} 6.
Qxd8+ {[%clk 01:29:16]} {[%emt 00:00:06]} Kxd8 {[%clk 01:32:34]} {[%emt
00:00:03]} 7. Bg5+ {[%clk 01:29:20]} {[%emt 00:00:25]} f6 {[%clk 01:31:40]}
{[%emt 00:01:25]} 8. O-O-O+ {[%clk 01:29:12]} {[%emt 00:00:38]} Nd7 {[%clk
01:28:02]} {[%emt 00:04:08]} 9. Be3 {[%clk 01:27:40]} {[%emt 00:02:01]} c6
{[%clk 01:16:50]} {[%emt 00:11:43]} 10. Ne4 {[%clk 01:23:23]} {[%emt 00:04:46]}
Kc7 {[%clk 01:05:16]} {[%emt 00:12:05]} 11. Nd6 {[%clk 01:21:53]} {[%emt
00:01:59]} Ne7 {[%clk 01:03:35]} {[%emt 00:02:11]} 12. g3 {[%clk 01:17:41]}
{[%emt 00:04:42]} Nb6 {[%clk 00:51:48]} {[%emt 00:12:17]} 13. Nxc8 {[%clk
01:16:53]} {[%emt 00:01:18]} Nexc8 {[%clk 00:46:06]} {[%emt 00:06:12]} 14. Bh3
{[%clk 01:10:46]} {[%emt 00:06:37]} f5 {[%clk 00:46:25]} {[%emt 00:00:12]} 15.
b3 {[%clk 01:10:54]} {[%emt 00:00:21]} Re8 {[%clk 00:42:29]} {[%emt 00:04:26]}
16. Rd2 {[%clk 01:06:09]} {[%emt 00:05:15]} a5 {[%clk 00:37:45]} {[%emt
00:05:15]} 17. a4 {[%clk 01:00:22]} {[%emt 00:06:16]} Nd7 {[%clk 00:35:26]}
{[%emt 00:02:50]} 18. Rhd1 {[%clk 01:00:23]} {[%emt 00:00:29]} Ncb6 {[%clk
00:34:59]} {[%emt 00:00:56]} 19. Ng5 {[%clk 00:45:21]} {[%emt 00:15:32]} Bf8
{[%clk 00:29:26]} {[%emt 00:06:03]} 20. Nxh7 {[%clk 00:40:37]} {[%emt
00:05:14]} Bb4 {[%clk 00:28:12]} {[%emt 00:01:45]} 21. Rc2 {[%clk 00:38:31]}
{[%emt 00:02:35]} Nc5 {[%clk 00:25:55]} {[%emt 00:02:49]} 22. Kb2 {[%clk
00:38:28]} {[%emt 00:00:32]} Ne4 {[%clk 00:23:27]} {[%emt 00:02:59]} 23. Bg2
{[%clk 00:37:49]} {[%emt 00:01:08]} Rh8 {[%clk 00:21:43]} {[%emt 00:02:14]} 24.
Ng5 {[%clk 00:25:38]} {[%emt 00:12:41]} Nxg5 {[%clk 00:21:28]} {[%emt
00:00:45]} 25. Bxg5 {[%clk 00:26:05]} {[%emt 00:00:03]} Rxh2 {[%clk 00:21:50]}
{[%emt 00:00:08]} 26. Rg1 {[%clk 00:25:47]} {[%emt 00:00:47]} Bc5 {[%clk
00:17:40]} {[%emt 00:04:42]} 27. e3 {[%clk 00:25:21]} {[%emt 00:00:56]} Rh5
{[%clk 00:15:53]} {[%emt 00:02:17]} 28. Bh4 {[%clk 00:24:29]} {[%emt 00:01:21]}
Nd7 {[%clk 00:11:50]} {[%emt 00:04:33]} 29. Bf3 {[%clk 00:24:39]} {[%emt
00:00:20]} Rh7 {[%clk 00:12:14]} {[%emt 00:00:07]} 30. Bg5 {[%clk 00:20:54]}
{[%emt 00:04:14]} Bb4 {[%clk 00:09:14]} {[%emt 00:03:31]} 31. e4 {[%clk
00:15:22]} {[%emt 00:06:02]} Nc5 {[%clk 00:09:09]} {[%emt 00:00:35]} 32. Re2
{[%clk 00:15:31]} {[%emt 00:00:20]} Re8 {[%clk 00:08:25]} {[%emt 00:01:15]} 33.
Rd1 {[%clk 00:11:31]} {[%emt 00:04:30]} Rh2 {[%clk 00:07:00]} {[%emt 00:01:54]}
34. exf5 {[%clk 00:11:16]} {[%emt 00:00:45]} gxf5 {[%clk 00:06:04]} {[%emt
00:01:26]} 35. Be3 {[%clk 00:04:43]} {[%emt 00:07:03]} e4 {[%clk 00:02:43]}
{[%emt 00:03:52]} 36. Bf4+ {[%clk 00:02:49]} {[%emt 00:02:23]} Kb6 {[%clk
00:03:06]} {[%emt 00:00:07]} 37. g4 {[%clk 00:02:38]} {[%emt 00:00:41]} Rhh8
{[%clk 00:03:28]} {[%emt 00:00:08]} 38. gxf5 {[%clk 00:01:49]} {[%emt
00:01:20]} exf3 {[%clk 00:03:39]} {[%emt 00:00:19]} 39. Rxe8 {[%clk 00:02:14]}
{[%emt 00:00:04]} Rxe8 {[%clk 00:04:06]} {[%emt 00:00:04]} 40. f6 {[%clk
00:00:39]} {[%emt 00:02:05]} Re2+ {[%clk 00:03:57]} {[%emt 00:00:40]} 41. Kb1
{[%clk 00:00:59]} {[%emt 00:00:09]} Ne4 {[%clk 00:22:26]} {[%emt 00:12:01]} 42.
c5+ {[%clk 00:23:52]} {[%emt 00:07:37]} Bxc5 {[%clk 00:21:22]} {[%emt
00:01:34]} 43. Be3 {[%clk 00:23:44]} {[%emt 00:00:37]} Bxe3 {[%clk 00:20:44]}
{[%emt 00:01:09]} 44. fxe3 {[%clk 00:24:05]} {[%emt 00:00:08]} Nxf6 {[%clk
00:21:12]} {[%emt 00:00:04]} 0-1